Cogmind - Beta 16.1 @@@ ROGUE MODE // 2026.04.29 @ 00:06:56 Player: KURIIRI Result: Destroyed by XD-UIA(R) with Subdweller Beam Cannon Performance ------------- Evolutions (0) 0 Regions Visited (2) 400 Robots Destroyed (38) 190 Value Destroyed (816) 816 Prototype IDs (0) 0 Alien Tech Used (0) 0 Bonus (0) 0 TOTAL SCORE: 1406 Bonus ------- None Cogmind --------- Core Integrity 0/250 Matter 281/300 Energy 22/100 System Corruption 0% Temperature Cool (9) Movement Core (500) Ox9 Location -10/Subcaves Parts ------- > --- POWER (1) -------- (None) > --- PROPULSION (2) --- (None) > --- UTILITY (2) ------ Large Storage Unit > --- WEAPON (2) ------- Subdweller Laser Particle Cannon > --- INVENTORY (15) --- Light Treads Compact Wheel Compact Wheel Hover Unit Hover Unit Hover Unit Hover Unit Hover Unit Hover Unit Medium Matter Pod (100) Light EM Pulse Cannon Peak State ------------ > --- POWER ------------ Ion Engine > --- PROPULSION ------- Light Treads Spiked Treads > --- UTILITY ---------- Large Storage Unit > --- WEAPON ----------- Light EM Pulse Cannon Makeshift Shrapnel Gun > --- INVENTORY -------- Light Ion Engine Light Treads Compact Wheel Compact Wheel Hover Unit Hover Unit Hover Unit Hover Unit Hover Unit Hover Unit Medium Matter Pod Light EM Pulse Cannon Particle Cannon [Rating: 12] Favorites ----------- Power Ion Engine Engine Ion Engine Propulsion Light Treads Treads Light Treads Leg Aluminum Leg Utility Large Storage Unit Device Heat Sink Storage Large Storage Unit Weapon Light EM Pulse Cannon Energy Gun Small Laser Energy Cannon Light EM Pulse Cannon Ballistic Gun Assault Rifle Build | -11 -10 -10 ------- Run | Yrd Mat Sub Slots Evolved . | . . . Power . | . . . Propulsion . | . . . Utility . | . . . Weapon . | . . . Parts Attached 18 | 3 6 9 Power 2 | . 1 1 Engine 2 | . 1 1 Core . | . . . Reactor . | . . . Propulsion 5 | 2 . 3 Treads 5 | 2 . 3 Leg . | . . . Wheel . | . . . Hover . | . . . Flight . | . . . Utility 3 | 1 2 . Device 2 | 1 1 . Storage 1 | . 1 . Processor . | . . . Hackware . | . . . Protection . | . . . Artifact . | . . . Weapon 8 | . 3 5 Energy Gun 1 | . . 1 Energy Cannon 5 | . 2 3 Ballistic Gun 2 | . 1 1 Ballistic Cannon . | . . . Launcher . | . . . Special Weapon . | . . . Impact Weapon . | . . . Slashing Weapon . | . . . Piercing Weapon . | . . . Special Melee Weapon . | . . . Unidentified Prototypes . | . . . Parts Lost 11 | . 1 10 Power 2 | . . 2 Propulsion 4 | . . 4 Utility 2 | . 1 1 Weapon 3 | . . 3 Highest Loss Streak 5 | . 1 5 To Critical Strikes . | . . . Average Backups 13 | 6 11 14 Power 1 | 1 1 . Propulsion 7 | 4 5 9 Utility 1 | . 1 1 Weapon 2 | 1 3 2 Tool/Special . | . . . Unused Backups 17 | . 10 7 Power 1 | . 1 . Propulsion 6 | . . 6 Utility 4 | . 3 1 Weapon 6 | . 6 . Tool/Special . | . . . Average Slot Usage (%) 97 | . 98 96 Engine 13 | . 14 13 Treads 27 | . 27 27 Device 12 | . 13 11 Storage 14 | . 14 14 Energy Cannon 22 | . 17 25 Ballistic Gun 5 | . 9 1 Peak Build Rating 12 | 7 11 12 Average Rating 9 | 6 9 10 On Entrance 7 | 6 7 10 Avg Prop Armor Cover (%) . | . . . Naked Turns . | . . . Heaviest Build 34 | 12 34 34 Greatest Support 40 | 40 40 40 Greatest Overweight (x) . | . . . Average Overweight (x) . | . . . Largest Inventory Capacity 15 | 8 15 15 Average Capacity 14 | 8 14 15 Most Carried 15 | 7 15 15 Average Carried 13 | 6 12 14 Final Capacity 15 | 8 15 15 Final Carried 15 | 5 15 11 Class Distribution -------------------- 100% | Mutant Dominant Class ---------------- Mutant | -10/Materials Mutant | -10/Subcaves Resources | -11 -10 -10 ----------- Run | Yrd Mat Sub Matter Collected 719 | 260 303 156 Remotely 75 | 42 33 . Salvage Created 1162 | 91 596 475 Parts 69 | 4 35 30 Haulers Intercepted 2 | . 2 . Recyclers Shooed . | . . . Parts Field Recycled . | . . . Retrieved Matter . | . . . Parts Self-Destructed 4 | . . 4 Prevented 8 | . . 8 Parts Restored . | . . . Kills | -11 -10 -10 ------- Run | Yrd Mat Sub Combat Hostiles Destroyed 27 | . 15 12 Guns 12 | . 9 3 Cannons 12 | . 5 7 AOE 1 | . . 1 Classes Destroyed 11 | 2 6 3 Worker 1 | . 1 . Tunneler 1 | 1 . . Hauler 2 | . 2 . Recycler 1 | 1 . . Operator 1 | . 1 . Turret 2 | . . 2 Watcher 3 | . 3 . Swarmer 13 | . 9 4 Grunt 7 | . 6 1 Artisan 1 | . . 1 Subdweller 7 | . . 7 Best Kill Streak 4 | 1 4 4 Combat Bots Only 4 | . 3 4 Max Kills in Single Turn 2 | 1 1 2 Gunslinging . | . . . Exploded 1 | . . 1 Melee . | . . . Uniques/NPCs Destroyed . | . . . Combat | -11 -10 -10 -------- Run | Yrd Mat Sub Hostile Shots Fired 204 | . 52 152 Missed 70 | . 9 61 Hits 134 | . 43 91 Projectile 134 | . 43 91 Critical Strikes 2 | . 1 1 Damage Taken 1546 | . 404 1142 Core 271 | . 50 221 Absorbed by Shields . | . . . Regen/Repaired (Parts) 215 | . 215 . Core Remaining (%) 100 | 100 . . Volleys Fired 122 | 10 46 66 Largest 2 | 2 2 2 Hottest 128 | 60 112 128 Shots Fired 209 | 20 89 100 Gun 99 | 20 54 25 Cannon 110 | . 35 75 Launcher . | . . . Special . | . . . Kinetic 79 | 10 54 15 Thermal 34 | 10 . 24 Explosive . | . . . Electromagnetic 96 | . 35 61 Robot Hit Streak 21 | 4 11 21 Robot Miss Streak 4 | 4 2 3 Penetration Max . | . . . Secondary Targets 1 | . 1 . Max Gunslinging Chain 1 | . 1 . Shots Hit Robots 140 | 11 57 72 Core Hits 51 | 3 26 22 Critical Kills 1 | . 1 . Critical Parts Destroyed . | . . . Critical Strikes 3 | . 2 1 Destroy 1 | . 1 . Corrupt 2 | . 1 1 Melee Attacks . | . . . Impact . | . . . Slashing . | . . . Piercing . | . . . Sneak Attacks . | . . . Combat Hostiles . | . . . Follow-up Attacks . | . . . Damage Inflicted 2770 | 128 1110 1532 Guns 1149 | 128 457 564 Cannons 1462 | . 547 915 Explosions 135 | . 82 53 Melee . | . . . Ramming 24 | . 24 . Kinetic 907 | 74 457 376 Thermal 581 | 54 82 445 Explosive . | . . . Electromagnetic 1258 | . 547 711 Impact . | . . . Slashing . | . . . Piercing . | . . . Highest Corruption . | . . . Average Corruption . | . . . Corruption Purged . | . . . Corruption Blocked . | . . . Overload Shots . | . . . Overflow Damage 70 | . 48 22 Projectiles 70 | . 48 22 Explosions . | . . . Melee . | . . . Knockbacks . | . . . Impact . | . . . Kinetic . | . . . Secondary . | . . . Self-Inflicted Damage 34 | . . 34 Shots 1 | . . 1 Rammed 7 | . 7 . Targets Rammed 8 | . 8 . Kicked . | . . . Crushed 1 | . 1 . Highest Temperature 249 | . 102 249 Average Temperature 48 | . 36 79 Received Heat Transfer 796 | . 96 700 Siege Activations . | . . . Martial Activations . | . . . Shielding Activations . | . . . Robots Disrupted . | . . . Combat Hostiles . | . . . Robots Corrupted 3 | . 1 2 Combat Hostiles 2 | . 1 1 Parts Fried 4 | . 2 2 Impact Corruptions . | . . . Robots Melted . | . . . Combat Hostiles . | . . . Parts Melted 1 | . . 1 Heat Transferred 870 | 125 50 695 Parts Sabotaged . | . . . Parts Stolen . | . . . Parts Stripped . | . . . Power Chain Reactions 3 | . 2 1 Alert | -11 -10 -10 ------- Run | Yrd Mat Sub Maximum Alert Level . | . . . Low Security (%) 100 | 100 100 . Level 1 . | . . . Level 2 . | . . . Level 3 . | . . . Level 4 . | . . . Level 5 . | . . . High Security . | . . . Max Security . | . . . Peak Influence 143 | 5 143 . Initial . | . . . Average 48 | 1 51 . Influence Increases 1152 | 10 482 660 Destroy 0b10 Robot/C 440 | . 300 140 Destroy 0b10 Robot/NC 45 | 10 35 . Destroy Leader 70 | . 60 10 Successful Hack 35 | . 35 . Select Force Hacks 30 | . 30 . Destroy Structure 7 | . 7 . Lose Combat Pursuer 525 | . 15 510 Influence Decreases 869 | 10 450 409 Entered New Map 16 | . . 16 Time Decay 743 | 10 440 293 Lost Part 110 | . 10 100 Squads Dispatched 2 | . 2 . Investigation 1 | . 1 . Extermination . | . . . Reinforcement 1 | . 1 . Assault . | . . . Garrison . | . . . Intercept . | . . . Searches Triggered . | . . . Construction Impeded . | . . . Haulers Reinforced . | . . . Active Scanning Responses . | . . . Cargo Convoy Interrupts . | . . . Stealth | -11 -10 -10 --------- Run | Yrd Mat Sub Distress Signals 2 | . 2 . Communications Jammed . | . . . Distress Signals . | . . . Times Spotted 62 | . 24 38 Peak Tracking Total 5 | . 4 5 Tactical Retreats 8 | . 1 7 Traps | -11 -10 -10 ------- Run | Yrd Mat Sub Traps Triggered . | . . . Indirectly . | . . . Trap Hack Attempts . | . . . Triggered . | . . . Disarmed . | . . . Reprogrammed . | . . . Reused . | . . . Traps Extracted . | . . . Installed . | . . . Triggered . | . . . Machines | -11 -10 -10 ---------- Run | Yrd Mat Sub Machines Disabled 1 | . . 1 Max in Single Turn 1 | . . 1 Machines Repaired . | . . . Machines Dismantled . | . . . Machines Sabotaged . | . . . Overloaded Fab Kills . | . . . Hacking | -11 -10 -10 --------- Run | Yrd Mat Sub Machines Accessed 8 | . 7 1 Terminals 5 | . 5 . Fabricators . | . . . Repair Stations 1 | . 1 . Recycling Units 1 | . 1 . Scanalyzers . | . . . Garrison Access . | . . . Total Hacks 31 | . 27 4 Successful 22 | . 18 4 Failed 8 | . 8 . Catastrophic . | . . . Database Lockouts 1 | . 1 . Manual 18 | . 18 . Terminals 18 | . 18 . Fabricators . | . . . Repair Stations 8 | . 8 . Recycling Units 1 | . 1 . Scanalyzers . | . . . Garrison Access . | . . . Terminal Hacks 9 | . 5 4 Record 4 | . . 4 Robot Analysis 4 | . 4 . Locate Traps 1 | . 1 . Fabricator Hacks . | . . . Repair Station Hacks 6 | . 6 . Scan Component 3 | . 3 . Repair 3 | . 3 . Recycling Unit Hacks . | . . . Scanalyzer . | . . . Garrison Access Hacks . | . . . Unauthorized Hacks 7 | . 7 . Terminals 6 | . 6 . Botnet 1 | . 1 . Skim 5 | . 5 . Fabricators . | . . . Repair Stations . | . . . Recycling Units 1 | . 1 . Tunnel 1 | . 1 . Scanalyzers . | . . . Garrison Access . | . . . Data Cores Recovered . | . . . Used . | . . . Hacking Detections 5 | . 5 . Full Trace Events . | . . . Feedback Events . | . . . Feedback Blocked . | . . . Robot Schematics Acquired . | . . . Robots Built . | . . . Authchips . | . . . Time . | . . . Total Robot Build Rating . | . . . Part Schematics Acquired . | . . . Parts Built . | . . . Authchips . | . . . Time . | . . . Total Part Build Rating . | . . . Part Studies Acquired . | . . . Parts Repaired 3 | . 3 . Time 84 | . 84 . Parts Recycled . | . . . Recycled Matter . | . . . Retrieved Matter . | . . . Retrieved Components . | . . . Parts Scanalyzed . | . . . Part Schematics Acquired . | . . . Parts Damaged . | . . . Bothacking | -11 -10 -10 ------------ Run | Yrd Mat Sub Used RIF Installer . | . . . Robots Hacked . | . . . Non-combat . | . . . Combat . | . . . Robot Hacks Applied . | . . . Relay Couplers Released . | . . . Fabnet Peak Effective % . | . . . Robots Rewired . | . . . Allies Hacked . | . . . Hacks Repelled . | . . . Allies | -11 -10 -10 -------- Run | Yrd Mat Sub Total Allies . | . . . Largest Group . | . . . Highest-Rated Group . | . . . Highest-Rated Ally . | . . . Total Orders . | . . . Ally Attacks . | . . . Total Damage . | . . . Kills . | . . . Allies Corrupted . | . . . Allies Melted . | . . . Intel | -11 -10 -10 ------- Run | Yrd Mat Sub Active Infowar (turns) . | . . . Robot Analysis Total 4 | . 4 . Derelict Logs Recovered 1 | . . 1 Drone Launches . | . . . Drone Recoveries . | . . . Exploration | -11 -10 -10 ------------- Run | Yrd Mat Sub Turns Passed 3444 | 73 1445 1926 Spaces Moved 1554 | 31 699 824 Core . | . . . Treads 1524 | 1 699 824 Legs 30 | 30 . . Wheels . | . . . Hover . | . . . Flight . | . . . Fastest Speed 120 | 120 160 160 Average Speed 159 | 121 160 160 Slowest Speed 160 | 160 160 160 Overloaded Moves . | . . . Propulsion Burnouts . | . . . Robots Hopped . | . . . Potential Cave-ins . | . . . Cave-ins Triggered . | . . . Exploration Rate (%) 46 | 3 81 55 Regions Visited 2 Branch Regions 1 Pre-discovered Areas 4 | . 4 . Known Exits Taken . | . . . Unknown Exits Taken 2 | 1 1 . Scrap Searched 3 | . . 3 Spaces Dug . | . . . Terrain Destroyed 11 | . 5 6 Melee . | . . . Projectile . | . . . AOE 11 | . 5 6 Terrain Rammed . | . . . Walls Destroyed . | . . . Machines Disabled . | . . . Actions | -11 -10 -10 --------- Run | Yrd Mat Sub Total 2308 | 47 931 1330 Wait 573 | 1 145 427 Move 1552 | 30 698 824 Hop . | . . . Pick Up 18 | 1 17 . Fast Attach 7 | 1 4 2 Attach 8 | 2 . 6 Detach 1 | . . 1 Swap 8 | . 5 3 Drop 11 | 2 8 1 Fire 122 | 10 46 66 Melee . | . . . Ram . | . . . Kick . | . . . Crush 8 | . 8 . Escape Stasis . | . . . Rewire . | . . . Trap . | . . . Miscellaneous . | . . . Route ------- -11/Scrapyard -10/Materials (discovered 5 exits: *Mat x3 / [*Min] / *Sub) -10/Subcaves (discovered 3 exits: *Mat x2 / [*Rec]) History --------- Turn | Location | Event 19 | -11/Scrapyard | Discovered new exit (range 3) 74 | -11/Scrapyard | Entered Materials 167 | -10/Materials | Discovered new exit (range 5) 264 | -10/Materials | Discovered new exit (range 14) 307 | -10/Materials | Build established: Mutant 497 | -10/Materials | Discovered new exit (range 7) 561 | -10/Materials | Discovered new exit (range 8) 1175 | -10/Materials | Central database locked down 1232 | -10/Materials | Learned location of Storage (-9) 1318 | -10/Materials | Learned Storage stockpile data 1347 | -10/Materials | Learned 2 Storage zone layouts 1352 | -10/Materials | Repaired Lgt. Treads 1372 | -10/Materials | Identified exit to Materials 1372 | -10/Materials | Learned location of 1 exit from Materials 1373 | -10/Materials | Learned location of 3 exits from Materials 1380 | -10/Materials | Repaired Lgt. Treads 1392 | -10/Materials | Learned location of 3 exits from Materials 1413 | -10/Materials | Repaired Lgt. EM Pulse Cannon 1417 | -10/Materials | Learned location of Recycling (-9) 1519 | -10/Materials | Entered Subcaves 1520 | -10/Subcaves | Approached by a straggling Scientist 1667 | -10/Subcaves | Discovered new exit (range 9) 2016 | -10/Subcaves | Identified exit to Materials 2373 | -10/Subcaves | Visited Clippyterm 2378 | -10/Subcaves | Learned Factory trap positions 2594 | -10/Subcaves | Discovered new exit (range 16) 3148 | -10/Subcaves | Lost 5 parts (2n1u2w) 3395 | -10/Subcaves | Ambushed by Subdwellers from Twisted Machinery 3420 | -10/Subcaves | Core integrity fell below 50% 3438 | -10/Subcaves | Core integrity fell below 20% 3445 | -10/Subcaves | Destroyed by XD-UIA(R) with Subdweller Beam Cannon Last Messages --------------- 03295_ Subatomizers dissect the Ion Engine. 03355_ J3-UHQ(R) destroyed. 03359_ O4-BQC(R) destroyed. 03363_ Acquired 16 matter. 03367_ Dropped Lgt. EM Pulse Cannon. 03368_ Acquired Sub. Laser. 03369_ Acquired 33 matter. 03379_ Acquired 12 matter. 03395_ 04-8UM(R) emerges from the Twisted Machinery. 03409_ Ion Engine destroyed. 03410_ 04-8UM(R) destroyed. 03416_ XD-UIA(R) affixes Scrap Shield Fragment to Scrap Shield. 03417_ Mak. Shrapnel Gun destroyed. 03417_ Lgt. Treads destroyed. 03431_ Critical hit (Meltdown: +280). 03433_ Lgt. Ion Engine destroyed. 03437_ Destroyed Scrap Shield. 03439_ Spk. Treads destroyed. Map ----- +----------------------------------------------------+ | | | | | | | | | | | | | | | ?????????????????????????????????????????????????? | | ?????????????????????????????????????????????????? | | ?????????????????????????????????????????????????? | | ?????????????????????????????????????????????????? | | ?????????????????????????????????????????????????? | | ?????????????????????????????????????????????????? | | ?????????????????????????????????????????????????? | | ?????????????????????????????????????????????????? | | ?????????????????????????????????????????????????? | | ?????????????????????????????????????????????????? | | ?????????????????????????????????????????????????? | | ?????????????????????????????????????????????????? | | ?????????????????????????????????????????????????? | | ?????????????????????????????????????????????????? | | ?????????????????????????????????????????????????? | | ???????????????????????????#?????????????????????? | | ?????????????????????????#;###???????????????????? | | ????????????????????????## ##??????????????????? | | ????????????????#???##??#@ ##?????????????????? | | ?????????????# #" ##"###%R #?????????????????? | | ???????????? "" " ! ##?##?????????????? | | ??????????????"""" ## ##????????????? | | ??????????????"""" ##### #????????????? | | ??????????????# ?????# ## ##????????? ??? | | ?????????????# ??????## ## ###????????? ?? | | ?????????????# #???????? # #######???? | | ???????????? ?????????### # ## #### | | ?????????? ????????????## ### # | | ????????????##?????????????## ## % ??? | | ???????????????????????????# &# #????????? | | ???????????????????????????##% & = % #????????? | | ????????????????????????????## != #????????? | | ????????????????????????????## ] ####?????? | | ????????????????????????????# % #?????? | | ????????????????????? ## #?????? | | ???????????????????????# #?## ##?????? | | ???????????????????????# ???## ####??????? | | ??????????????????????# ????## #?????????? | | ??????????????????????## ### ?????## #?????????? | | ???????????????????????# #??#??????# ##??????? # | | ??????????????????????# ?????###??## ##?????? # | | ??????????????????????# ?????## % ??# #????? # | | ??????????????????????#??????# % ?# ####?? ## | +----------------------------------------------------+ Best States ------------- Heat Dissipation 35 Energy Generation 10 Energy Capacity 250 Matter Stores 300 Matter Capacity 300 Sight Range 16 Terrain Scan Density 10 Evasion (%) 50 Recoil Reduction 2 Item Schematics ----------------- None Robot Schematics ------------------ None Fabricated ------------ Nothing Repaired ---------- Lgt. Treads | 35% | -10/Materials Lgt. Treads | 37% | -10/Materials Lgt. EM Pulse Cannon | 45% | -10/Materials Studied --------- None Alien Tech Used ----------------- None Achievements -------------- None Challenges ------------ None Game ------ Seed AblativeThiefDeconstructor Manual? 0 Play Time 00:19:02 Cumulative 429.6 hours Start 2026.04.28 @ 23:49:13 End 2026.04.29 @ 00:06:56 Sessions 1 Manual Loads 0 Difficulty Rogue Special Mode None Game No. 363 Rogue 327 Adventurer 36 Explorer 0 Win Type - Total 5 Types 2/0/0/1/0/0/0/2/0/0 Lore% 79 Gallery% 69 Achievement% 59 Wizard Run 0 Options --------- Layout 1 ASCII 0 Keyboard 0 Movement Numpad Keybinds 0 Fullscreen 1 Font 48/Smallcaps Map View 50x35 Zoom Use 0% Tactical HUD 1 Map Filters NONE Filters NONE Steam 1 RUN: f1f51c0b-070d-4bf0-a26c-6cbc3bc31158